[Event "Titled Tuesday Blitz May 17 Late 2022"]
[White "Pinheiro, Iung Alicio de O."]
[Black "Wagner, Dennis"]
[WhiteFideId "2104350"]
[BlackFideId "24650684"]
[WhiteElo "2283"]
[BlackElo "2355"]
[Result "0-1"]
[Round "08"]
[TimeControl "180+1"]
[Date "2022.05.17"]
[WhiteClock "0:00:04"]
[BlackClock "0:00:58"]

1. c4 {[%clk 0:03:00]}  g6 {[%clk 0:02:59]} 2. g3 {[%clk 0:02:59]}  Bg7 {[%clk 0:02:59]} 3. Bg2 {[%clk 0:03:00]}  c5 {[%clk 0:02:59]} 4. Nc3 {[%clk 0:02:58]}  Nc6 {[%clk 0:02:58]} 5. a3 {[%clk 0:02:58]}  Rb8 {[%clk 0:02:57]} 6. Rb1 {[%clk 0:02:57]}  b6 {[%clk 0:02:58]} 7. e4 {[%clk 0:02:33]}  e6 {[%clk 0:02:51]} 8. Nge2 {[%clk 0:02:30]}  Nge7 {[%clk 0:02:51]} 9. O-O {[%clk 0:02:31]}  O-O {[%clk 0:02:51]} 10. b4 {[%clk 0:02:28]}  d6 {[%clk 0:02:52]} 11. d3 {[%clk 0:02:27]}  Bb7 {[%clk 0:02:52]} 12. Bf4 {[%clk 0:02:20]}  Rc8 {[%clk 0:02:50]} 13. Qd2 {[%clk 0:02:17]}  Qd7 {[%clk 0:02:50]} 14. Bh6 {[%clk 0:02:17]}  Bxh6 {[%clk 0:02:48]} 15. Qxh6 {[%clk 0:02:17]}  Nd4 {[%clk 0:02:19]} 16. Nxd4 {[%clk 0:02:00]}  cxd4 {[%clk 0:02:20]} 17. Ne2 {[%clk 0:02:01]}  e5 {[%clk 0:02:20]} 18. Bh3 {[%clk 0:01:58]}  f5 {[%clk 0:02:20]} 19. b5 {[%clk 0:01:48]}  Qc7 {[%clk 0:02:09]} 20. f3 {[%clk 0:01:46]}  Rf7 {[%clk 0:02:06]} 21. a4 {[%clk 0:01:40]}  Rcf8 {[%clk 0:02:06]} 22. Ra1 {[%clk 0:00:54]}  Qc5 {[%clk 0:02:05]} 23. Rfb1 {[%clk 0:00:47]}  Bc8 {[%clk 0:02:04]} 24. Kh1 {[%clk 0:00:36]}  Kh8 {[%clk 0:01:52]} 25. a5 {[%clk 0:00:31]}  Ng8 {[%clk 0:01:53]} 26. Qh4 {[%clk 0:00:26]}  fxe4 {[%clk 0:01:52]} 27. Bxc8 {[%clk 0:00:26]}  exf3 {[%clk 0:01:13]} 28. Be6 {[%clk 0:00:22]}  Rf6 {[%clk 0:01:14]} 29. Bxg8 {[%clk 0:00:22]}  Kxg8 {[%clk 0:01:15]} 30. Ng1 {[%clk 0:00:10]}  f2 {[%clk 0:01:15]} 31. axb6 {[%clk 0:00:09]}  axb6 {[%clk 0:01:12]} 32. Rf1 {[%clk 0:00:09]}  fxg1=Q+ {[%clk 0:01:11]} 33. Kxg1 {[%clk 0:00:10]}  Rxf1+ {[%clk 0:01:04]} 34. Rxf1 {[%clk 0:00:11]}  Rxf1+ {[%clk 0:01:04]} 35. Kxf1 {[%clk 0:00:12]}  Qc8 {[%clk 0:01:05]} 36. Qe7 {[%clk 0:00:09]}  Qf8+ {[%clk 0:01:04]} 37. Qxf8+ {[%clk 0:00:09]}  Kxf8 {[%clk 0:01:04]} 38. Kf2 {[%clk 0:00:10]}  Kf7 {[%clk 0:01:03]} 39. Kf3 {[%clk 0:00:10]}  Kf6 {[%clk 0:00:59]} 40. Ke4 {[%clk 0:00:04]}  Ke6 {[%clk 0:01:00]} 41. h3 {[%clk 0:00:04]}  h6 {[%clk 0:01:00]} 42. h4 {[%clk 0:00:04]}  h5 {[%clk 0:01:00]} 43. Kf3 {[%clk 0:00:04]}  d5 {[%clk 0:00:58]} 0-1


[Site "https://www.chess.com"]

[Event "Titled Tuesday Blitz May 17 Late 2022"]
[White "Popilski, Gil"]
[Black "Babazada, Khazar"]
[WhiteFideId "2809060"]
[BlackFideId "13413554"]
[WhiteElo "2537"]
[BlackElo "2406"]
[Result "0-1"]
[Round "08"]
[TimeControl "180+1"]
[Date "2022.05.17"]
[WhiteClock "0:00:18"]
[BlackClock "0:01:10"]

1. e4 {[%clk 0:03:00]}  g6 {[%clk 0:02:55]} 2. d4 {[%clk 0:03:00]}  Bg7 {[%clk 0:02:56]} 3. Nf3 {[%clk 0:02:58]}  d6 {[%clk 0:02:57]} 4. Be2 {[%clk 0:02:57]}  Nf6 {[%clk 0:02:56]} 5. Nc3 {[%clk 0:02:57]}  O-O {[%clk 0:02:56]} 6. O-O {[%clk 0:02:57]}  Bg4 {[%clk 0:02:57]} 7. Bg5 {[%clk 0:02:53]}  Nbd7 {[%clk 0:02:56]} 8. h3 {[%clk 0:02:52]}  Bxf3 {[%clk 0:02:56]} 9. Bxf3 {[%clk 0:02:52]}  e5 {[%clk 0:02:57]} 10. dxe5 {[%clk 0:02:40]}  dxe5 {[%clk 0:02:58]} 11. Qe2 {[%clk 0:02:37]}  c6 {[%clk 0:02:58]} 12. a4 {[%clk 0:02:33]}  Qc7 {[%clk 0:02:57]} 13. Rfd1 {[%clk 0:02:31]}  Nc5 {[%clk 0:02:53]} 14. Be3 {[%clk 0:02:17]}  Ne6 {[%clk 0:02:50]} 15. Qc4 {[%clk 0:02:11]}  Rfd8 {[%clk 0:02:45]} 16. Ne2 {[%clk 0:02:02]}  Ne8 {[%clk 0:02:38]} 17. c3 {[%clk 0:01:55]}  Nd6 {[%clk 0:02:26]} 18. Qb3 {[%clk 0:01:54]}  h5 {[%clk 0:02:17]} 19. h4 {[%clk 0:01:48]}  Kh7 {[%clk 0:02:09]} 20. g3 {[%clk 0:01:46]}  Bh6 {[%clk 0:02:07]} 21. Bxh6 {[%clk 0:01:40]}  Kxh6 {[%clk 0:02:08]} 22. a5 {[%clk 0:01:25]}  g5 {[%clk 0:02:02]} 23. hxg5+ {[%clk 0:01:23]}  Nxg5 {[%clk 0:01:59]} 24. Kg2 {[%clk 0:01:20]}  Qe7 {[%clk 0:01:50]} 25. Qb4 {[%clk 0:00:58]}  Qf6 {[%clk 0:01:44]} 26. Ng1 {[%clk 0:00:57]}  h4 {[%clk 0:01:42]} 27. Bg4 {[%clk 0:00:54]}  Ndxe4 {[%clk 0:01:39]} 28. f4 {[%clk 0:00:42]}  exf4 {[%clk 0:01:26]} 29. gxh4 {[%clk 0:00:41]}  f3+ {[%clk 0:01:24]} 30. Nxf3 {[%clk 0:00:32]}  Nxf3 {[%clk 0:01:24]} 31. Qxe4 {[%clk 0:00:27]}  Nxh4+ {[%clk 0:01:24]} 32. Kh3 {[%clk 0:00:26]}  Ng6 {[%clk 0:01:22]} 33. Rxd8 {[%clk 0:00:20]}  Rxd8 {[%clk 0:01:23]} 34. a6 {[%clk 0:00:19]}  Qh4+ {[%clk 0:01:10]} 35. Kg2 {[%clk 0:00:18]}  Rd2+ {[%clk 0:01:10]} 0-1


[Site "https://www.chess.com"]

[Event "Titled Tuesday Blitz May 17 Late 2022"]
[White "Salem, A.R. Saleh"]
[Black "Izoria, Zviad"]
[WhiteFideId "9301348"]
[BlackFideId "13601733"]
[WhiteElo "2679"]
[BlackElo "2626"]
[Result "1-0"]
[Round "08"]
[TimeControl "180+1"]
[Date "2022.05.17"]
[WhiteClock "0:01:07"]
[BlackClock "0:00:46"]

1. d4 {[%clk 0:03:00]}  d6 {[%clk 0:02:59]} 2. e4 {[%clk 0:02:58]}  g6 {[%clk 0:02:59]} 3. c4 {[%clk 0:02:57]}  e5 {[%clk 0:02:58]} 4. Nf3 {[%clk 0:02:53]}  exd4 {[%clk 0:02:57]} 5. Nxd4 {[%clk 0:02:52]}  Bg7 {[%clk 0:02:58]} 6. Nc3 {[%clk 0:02:52]}  Nc6 {[%clk 0:02:58]} 7. Be3 {[%clk 0:02:51]}  Nge7 {[%clk 0:02:57]} 8. h4 {[%clk 0:02:51]}  f5 {[%clk 0:02:55]} 9. h5 {[%clk 0:02:50]}  fxe4 {[%clk 0:02:55]} 10. hxg6 {[%clk 0:02:43]}  hxg6 {[%clk 0:02:56]} 11. Rxh8+ {[%clk 0:02:43]}  Bxh8 {[%clk 0:02:57]} 12. Nxe4 {[%clk 0:02:30]}  Bf5 {[%clk 0:02:25]} 13. Ng3 {[%clk 0:02:28]}  Qd7 {[%clk 0:02:22]} 14. Ngxf5 {[%clk 0:02:20]}  Nxf5 {[%clk 0:02:23]} 15. Nxf5 {[%clk 0:02:20]}  Qxf5 {[%clk 0:02:22]} 16. Bd3 {[%clk 0:02:15]}  Qe6 {[%clk 0:02:16]} 17. Be2 {[%clk 0:02:08]}  Qe4 {[%clk 0:01:40]} 18. Bf3 {[%clk 0:01:17]}  Qxc4 {[%clk 0:00:54]} 19. Rc1 {[%clk 0:01:17]}  Qa6 {[%clk 0:00:54]} 20. Qb3 {[%clk 0:01:08]}  O-O-O {[%clk 0:00:50]} 21. Rxc6 {[%clk 0:01:08]}  bxc6 {[%clk 0:00:49]} 22. Bg4+ {[%clk 0:01:08]}  Rd7 {[%clk 0:00:45]} 23. Qg8+ {[%clk 0:01:08]}  Kb7 {[%clk 0:00:46]} 24. Bxd7 {[%clk 0:01:07]} 1-0


[Site "https://www.chess.com"]

[Event "Titled Tuesday Blitz May 17 Late 2022"]
[White "Santos Ruiz, Miguel"]
[Black "Solon, Nathan"]
[WhiteFideId "22291482"]
[BlackFideId "2017229"]
[WhiteElo "2486"]
[BlackElo "2574"]
[Result "1-0"]
[Round "08"]
[TimeControl "180+1"]
[Date "2022.05.17"]
[WhiteClock "0:00:19"]
[BlackClock "0:00:22"]

1. g3 {[%clk 0:03:00]}  d5 {[%clk 0:02:59]} 2. Bg2 {[%clk 0:02:55]}  e5 {[%clk 0:02:59]} 3. d3 {[%clk 0:02:54]}  Nf6 {[%clk 0:02:58]} 4. Nf3 {[%clk 0:02:53]}  Nc6 {[%clk 0:02:57]} 5. O-O {[%clk 0:02:54]}  Be7 {[%clk 0:02:58]} 6. a3 {[%clk 0:02:51]}  a5 {[%clk 0:02:57]} 7. Nc3 {[%clk 0:02:51]}  d4 {[%clk 0:02:54]} 8. Na2 {[%clk 0:02:52]}  O-O {[%clk 0:02:52]} 9. c4 {[%clk 0:02:48]}  h6 {[%clk 0:02:48]} 10. Nd2 {[%clk 0:02:42]}  Bf5 {[%clk 0:02:41]} 11. Rb1 {[%clk 0:02:42]}  Qd7 {[%clk 0:02:23]} 12. Re1 {[%clk 0:02:41]}  Rfe8 {[%clk 0:02:17]} 13. b4 {[%clk 0:02:39]}  axb4 {[%clk 0:02:17]} 14. Nxb4 {[%clk 0:02:40]}  Bxb4 {[%clk 0:02:11]} 15. axb4 {[%clk 0:02:41]}  e4 {[%clk 0:02:11]} 16. dxe4 {[%clk 0:02:24]}  Nxe4 {[%clk 0:02:11]} 17. Nxe4 {[%clk 0:02:23]}  Bxe4 {[%clk 0:02:10]} 18. Bxe4 {[%clk 0:02:24]}  Rxe4 {[%clk 0:02:11]} 19. b5 {[%clk 0:02:22]}  Ne5 {[%clk 0:02:07]} 20. f3 {[%clk 0:02:22]}  Qh3 {[%clk 0:01:55]} 21. Bf4 {[%clk 0:01:44]}  Rxf4 {[%clk 0:01:16]} 22. gxf4 {[%clk 0:01:43]}  Ng6 {[%clk 0:01:17]} 23. Qxd4 {[%clk 0:01:42]}  Re8 {[%clk 0:00:58]} 24. Kh1 {[%clk 0:01:11]}  Re6 {[%clk 0:00:44]} 25. Ra1 {[%clk 0:00:55]}  Kh7 {[%clk 0:00:41]} 26. c5 {[%clk 0:00:36]}  Rf6 {[%clk 0:00:28]} 27. Ra8 {[%clk 0:00:28]}  Nxf4 {[%clk 0:00:25]} 28. Rg1 {[%clk 0:00:23]}  Nxe2 {[%clk 0:00:22]} 29. Qe4+ {[%clk 0:00:21]}  g6 {[%clk 0:00:22]} 30. Qxe2 {[%clk 0:00:19]} 1-0


[Site "https://www.chess.com"]

[Event "Titled Tuesday Blitz May 17 Late 2022"]
[White "Suleymanli, Aydin"]
[Black "Bok, Benjamin"]
[WhiteFideId "13413937"]
[BlackFideId "1017063"]
[WhiteElo "2481"]
[BlackElo "2658"]
[Result "1-0"]
[Round "08"]
[TimeControl "180+1"]
[Date "2022.05.17"]
[WhiteClock "0:00:05"]
[BlackClock "0:00:02"]

1. e4 {[%clk 0:02:51]}  c5 {[%clk 0:02:59]} 2. Nc3 {[%clk 0:02:50]}  d6 {[%clk 0:03:00]} 3. d4 {[%clk 0:02:50]}  cxd4 {[%clk 0:03:01]} 4. Qxd4 {[%clk 0:02:51]}  Nc6 {[%clk 0:03:01]} 5. Qd2 {[%clk 0:02:51]}  g6 {[%clk 0:03:01]} 6. b3 {[%clk 0:02:50]}  Bh6 {[%clk 0:03:02]} 7. f4 {[%clk 0:02:50]}  Nf6 {[%clk 0:03:03]} 8. Bb2 {[%clk 0:02:48]}  O-O {[%clk 0:03:03]} 9. O-O-O {[%clk 0:02:43]}  a5 {[%clk 0:03:03]} 10. Kb1 {[%clk 0:02:40]}  a4 {[%clk 0:02:23]} 11. bxa4 {[%clk 0:02:39]}  Be6 {[%clk 0:02:09]} 12. Nf3 {[%clk 0:02:34]}  Qa5 {[%clk 0:02:06]} 13. Ng5 {[%clk 0:02:34]}  Bxg5 {[%clk 0:01:42]} 14. fxg5 {[%clk 0:02:34]}  Nd7 {[%clk 0:01:42]} 15. Bb5 {[%clk 0:02:17]}  Nc5 {[%clk 0:01:30]} 16. h4 {[%clk 0:02:00]}  Ne5 {[%clk 0:00:26]} 17. h5 {[%clk 0:02:00]}  Rac8 {[%clk 0:00:13]} 18. hxg6 {[%clk 0:01:59]}  fxg6 {[%clk 0:00:14]} 19. Nd5 {[%clk 0:01:45]}  Qd8 {[%clk 0:00:14]} 20. Qe3 {[%clk 0:01:23]}  Bxd5 {[%clk 0:00:14]} 21. Rxd5 {[%clk 0:01:18]}  Qc7 {[%clk 0:00:14]} 22. Qh3 {[%clk 0:01:01]}  Rf7 {[%clk 0:00:14]} 23. Ka1 {[%clk 0:00:32]}  Nxe4 {[%clk 0:00:13]} 24. Re1 {[%clk 0:00:15]}  Qxc2 {[%clk 0:00:12]} 25. Rxe4 {[%clk 0:00:15]}  Qxe4 {[%clk 0:00:04]} 26. Qxc8+ {[%clk 0:00:14]}  Kg7 {[%clk 0:00:04]} 27. Rd1 {[%clk 0:00:13]}  Qxg2 {[%clk 0:00:02]} 28. Qe6 {[%clk 0:00:09]}  Qxg5 {[%clk 0:00:02]} 29. Bc4 {[%clk 0:00:07]}  Rf2 {[%clk 0:00:02]} 30. Qg8+ {[%clk 0:00:05]}  Kh6 {[%clk 0:00:02]} 31. Rh1+ {[%clk 0:00:04]}  Qh5 {[%clk 0:00:03]} 32. Bc1+ {[%clk 0:00:04]}  g5 {[%clk 0:00:02]} 33. Qxg5# {[%clk 0:00:05]} 1-0


[Site "https://www.chess.com"]

[Event "Titled Tuesday Blitz May 17 Late 2022"]
[White "Svane, Rasmus"]
[Black "Kamsky, Gata"]
[WhiteFideId "4657101"]
[BlackFideId "2000024"]
[WhiteElo "2674"]
[BlackElo "2645"]
[Result "0-1"]
[Round "08"]
[TimeControl "180+1"]
[Date "2022.05.17"]
[WhiteClock "0:00:07"]
[BlackClock "0:00:27"]

1. Nf3 {[%clk 0:03:00]}  Nf6 {[%clk 0:02:58]} 2. d4 {[%clk 0:03:01]}  d5 {[%clk 0:02:57]} 3. c3 {[%clk 0:03:00]}  Bf5 {[%clk 0:02:55]} 4. Qb3 {[%clk 0:02:59]}  Qc8 {[%clk 0:02:53]} 5. c4 {[%clk 0:03:00]}  e6 {[%clk 0:02:51]} 6. cxd5 {[%clk 0:02:58]}  exd5 {[%clk 0:02:49]} 7. Nc3 {[%clk 0:02:58]}  c6 {[%clk 0:02:48]} 8. Bf4 {[%clk 0:02:58]}  Be7 {[%clk 0:02:44]} 9. Rc1 {[%clk 0:02:58]}  O-O {[%clk 0:02:42]} 10. e3 {[%clk 0:02:59]}  Nbd7 {[%clk 0:02:35]} 11. h3 {[%clk 0:02:59]}  h6 {[%clk 0:02:30]} 12. Be2 {[%clk 0:02:55]}  Re8 {[%clk 0:02:28]} 13. O-O {[%clk 0:02:55]}  a6 {[%clk 0:02:25]} 14. a4 {[%clk 0:02:47]}  Ra7 {[%clk 0:02:10]} 15. Ne5 {[%clk 0:02:37]}  Qd8 {[%clk 0:02:08]} 16. Nd3 {[%clk 0:02:19]}  a5 {[%clk 0:02:03]} 17. Rfd1 {[%clk 0:02:18]}  Qb6 {[%clk 0:02:01]} 18. Qa2 {[%clk 0:02:18]}  Bf8 {[%clk 0:01:58]} 19. Bf1 {[%clk 0:02:08]}  Raa8 {[%clk 0:01:57]} 20. Ne2 {[%clk 0:02:05]}  Ne4 {[%clk 0:01:51]} 21. Ng3 {[%clk 0:02:04]}  Nxg3 {[%clk 0:01:50]} 22. Bxg3 {[%clk 0:02:05]}  Nf6 {[%clk 0:01:44]} 23. Rc3 {[%clk 0:01:45]}  Ne4 {[%clk 0:01:40]} 24. Rb3 {[%clk 0:01:45]}  Qd8 {[%clk 0:01:35]} 25. Be5 {[%clk 0:01:35]}  Ra7 {[%clk 0:01:29]} 26. Qa1 {[%clk 0:01:28]}  Bd6 {[%clk 0:01:15]} 27. Qc1 {[%clk 0:01:26]}  f6 {[%clk 0:01:11]} 28. Bxd6 {[%clk 0:01:26]}  Nxd6 {[%clk 0:01:11]} 29. Rc3 {[%clk 0:01:24]}  g5 {[%clk 0:01:05]} 30. Nc5 {[%clk 0:01:05]}  Ra8 {[%clk 0:00:56]} 31. Bd3 {[%clk 0:01:06]}  Bxd3 {[%clk 0:00:51]} 32. Rcxd3 {[%clk 0:01:07]}  Qe7 {[%clk 0:00:48]} 33. Qb1 {[%clk 0:01:07]}  f5 {[%clk 0:00:39]} 34. Rc3 {[%clk 0:00:49]}  Ne4 {[%clk 0:00:38]} 35. Nxe4 {[%clk 0:00:46]}  fxe4 {[%clk 0:00:36]} 36. Rc5 {[%clk 0:00:45]}  Rf8 {[%clk 0:00:34]} 37. b4 {[%clk 0:00:44]}  axb4 {[%clk 0:00:34]} 38. Qxb4 {[%clk 0:00:45]}  Rf7 {[%clk 0:00:34]} 39. Rd2 {[%clk 0:00:41]}  h5 {[%clk 0:00:33]} 40. Rb2 {[%clk 0:00:20]}  g4 {[%clk 0:00:32]} 41. Ra5 {[%clk 0:00:19]}  Rxa5 {[%clk 0:00:31]} 42. Qxa5 {[%clk 0:00:19]}  gxh3 {[%clk 0:00:29]} 43. gxh3 {[%clk 0:00:17]}  Kh7 {[%clk 0:00:29]} 44. Kf1 {[%clk 0:00:16]}  Qh4 {[%clk 0:00:28]} 45. Re2 {[%clk 0:00:16]}  Qxh3+ {[%clk 0:00:27]} 46. Ke1 {[%clk 0:00:17]}  Qh1+ {[%clk 0:00:27]} 47. Kd2 {[%clk 0:00:17]}  Qb1 {[%clk 0:00:27]} 48. Qd8 {[%clk 0:00:09]}  Rg7 {[%clk 0:00:27]} 49. Kc3 {[%clk 0:00:07]}  Qd3+ {[%clk 0:00:27]} 50. Kb4 {[%clk 0:00:07]}  Qxe2 {[%clk 0:00:27]} 0-1


[Site "https://www.chess.com"]

[Event "Titled Tuesday Blitz May 17 Late 2022"]
[White "Urbina Perez, Juan Antonio"]
[Black "Nazari, Arad"]
[WhiteFideId "2217368"]
[BlackFideId "12577324"]
[WhiteElo "2192"]
[BlackElo "2129"]
[Result "0-1"]
[Round "08"]
[TimeControl "180+1"]
[Date "2022.05.17"]
[WhiteClock "0:00:01"]
[BlackClock "0:00:07"]

1. d4 {[%clk 0:03:00]}  Nf6 {[%clk 0:03:00]} 2. Nf3 {[%clk 0:03:01]}  g6 {[%clk 0:03:00]} 3. g3 {[%clk 0:03:02]}  Bg7 {[%clk 0:03:01]} 4. Bg2 {[%clk 0:03:03]}  O-O {[%clk 0:03:01]} 5. O-O {[%clk 0:03:03]}  d5 {[%clk 0:03:02]} 6. a4 {[%clk 0:03:04]}  c6 {[%clk 0:03:03]} 7. b3 {[%clk 0:03:03]}  a5 {[%clk 0:02:58]} 8. Bb2 {[%clk 0:03:04]}  b6 {[%clk 0:02:59]} 9. Re1 {[%clk 0:03:04]}  Ne4 {[%clk 0:02:56]} 10. Nc3 {[%clk 0:03:00]}  Nxc3 {[%clk 0:02:54]} 11. Bxc3 {[%clk 0:03:00]}  c5 {[%clk 0:02:53]} 12. Qd2 {[%clk 0:02:56]}  Nc6 {[%clk 0:02:49]} 13. dxc5 {[%clk 0:02:54]}  bxc5 {[%clk 0:02:48]} 14. Bxg7 {[%clk 0:02:53]}  Kxg7 {[%clk 0:02:47]} 15. Rad1 {[%clk 0:02:51]}  e6 {[%clk 0:02:47]} 16. e4 {[%clk 0:02:47]}  d4 {[%clk 0:02:43]} 17. e5 {[%clk 0:02:44]}  Bb7 {[%clk 0:02:38]} 18. h4 {[%clk 0:02:38]}  h5 {[%clk 0:02:34]} 19. Qf4 {[%clk 0:02:32]}  Nb4 {[%clk 0:02:31]} 20. Nxd4 {[%clk 0:02:11]}  cxd4 {[%clk 0:01:19]} 21. Bxb7 {[%clk 0:02:10]}  Ra7 {[%clk 0:01:17]} 22. Be4 {[%clk 0:02:09]}  Rd7 {[%clk 0:01:17]} 23. Bd3 {[%clk 0:02:05]}  Qe7 {[%clk 0:01:16]} 24. Bb5 {[%clk 0:01:49]}  Rc7 {[%clk 0:01:16]} 25. Bd3 {[%clk 0:01:35]}  Rd8 {[%clk 0:01:08]} 26. Rd2 {[%clk 0:01:32]}  Rc5 {[%clk 0:01:00]} 27. Red1 {[%clk 0:01:19]}  Nd5 {[%clk 0:01:00]} 28. Qxd4 {[%clk 0:01:06]}  Nc3 {[%clk 0:01:00]} 29. Qf4 {[%clk 0:01:02]}  Nxd1 {[%clk 0:00:55]} 30. Rxd1 {[%clk 0:01:03]}  Rcd5 {[%clk 0:00:47]} 31. Re1 {[%clk 0:01:03]}  Rd4 {[%clk 0:00:47]} 32. Qf3 {[%clk 0:00:59]}  Rc8 {[%clk 0:00:45]} 33. Re4 {[%clk 0:00:57]}  Rxe4 {[%clk 0:00:44]} 34. Bxe4 {[%clk 0:00:56]}  Rc5 {[%clk 0:00:41]} 35. Qf4 {[%clk 0:00:55]}  Qd8 {[%clk 0:00:38]} 36. Bd3 {[%clk 0:00:55]}  Kg8 {[%clk 0:00:31]} 37. Qf3 {[%clk 0:00:46]}  Rxe5 {[%clk 0:00:26]} 38. Kh2 {[%clk 0:00:34]}  Kg7 {[%clk 0:00:26]} 39. Qf4 {[%clk 0:00:33]}  Qf6 {[%clk 0:00:26]} 40. Qd4 {[%clk 0:00:30]}  Re1 {[%clk 0:00:24]} 41. Qc5 {[%clk 0:00:27]}  Re5 {[%clk 0:00:19]} 42. Qc3 {[%clk 0:00:26]}  Rf5 {[%clk 0:00:16]} 43. Qxf6+ {[%clk 0:00:22]}  Rxf6 {[%clk 0:00:17]} 44. f4 {[%clk 0:00:21]}  e5 {[%clk 0:00:16]} 45. fxe5 {[%clk 0:00:21]}  Re6 {[%clk 0:00:17]} 46. Kg2 {[%clk 0:00:21]}  Rxe5 {[%clk 0:00:17]} 47. Kf3 {[%clk 0:00:22]}  f5 {[%clk 0:00:17]} 48. c3 {[%clk 0:00:20]}  Kf6 {[%clk 0:00:14]} 49. b4 {[%clk 0:00:20]}  Rd5 {[%clk 0:00:14]} 50. Ke3 {[%clk 0:00:19]}  Ke5 {[%clk 0:00:14]} 51. b5 {[%clk 0:00:19]}  Rd8 {[%clk 0:00:09]} 52. c4 {[%clk 0:00:17]}  Kd6 {[%clk 0:00:09]} 53. Kd4 {[%clk 0:00:17]}  Kc7+ {[%clk 0:00:10]} 54. Kc3 {[%clk 0:00:15]}  Kb6 {[%clk 0:00:10]} 55. Be2 {[%clk 0:00:14]}  Kc5 {[%clk 0:00:10]} 56. Bf3 {[%clk 0:00:14]}  Re8 {[%clk 0:00:09]} 57. Kd3 {[%clk 0:00:13]}  Rd8+ {[%clk 0:00:09]} 58. Bd5 {[%clk 0:00:13]}  Re8 {[%clk 0:00:06]} 59. Bf7 {[%clk 0:00:11]}  Rd8+ {[%clk 0:00:06]} 60. Bd5 {[%clk 0:00:11]}  Rd7 {[%clk 0:00:07]} 61. Ke3 {[%clk 0:00:11]}  Rd6 {[%clk 0:00:03]} 62. Kf4 {[%clk 0:00:11]}  Kb4 {[%clk 0:00:04]} 63. Bf7 {[%clk 0:00:06]}  Kxa4 {[%clk 0:00:04]} 64. c5 {[%clk 0:00:06]}  Rd4+ {[%clk 0:00:03]} 65. Kg5 {[%clk 0:00:04]}  Kxb5 {[%clk 0:00:03]} 66. Bxg6 {[%clk 0:00:04]}  Kxc5 {[%clk 0:00:04]} 67. Kxh5 {[%clk 0:00:03]}  f4 {[%clk 0:00:04]} 68. gxf4 {[%clk 0:00:03]}  Rxf4 {[%clk 0:00:05]} 69. Kg5 {[%clk 0:00:02]}  Rf1 {[%clk 0:00:05]} 70. h5 {[%clk 0:00:02]}  Rg1+ {[%clk 0:00:06]} 71. Kf6 {[%clk 0:00:02]}  a4 {[%clk 0:00:06]} 72. h6 {[%clk 0:00:01]}  a3 {[%clk 0:00:07]} 0-1


[Site "https://www.chess.com"]

[Event "Titled Tuesday Blitz May 17 Late 2022"]
[White "Zakhartsov, Vladimir"]
[Black "Sjugirov, Sanan"]
[WhiteFideId "4145097"]
[BlackFideId "4189302"]
[WhiteElo "2428"]
[BlackElo "2602"]
[Result "0-1"]
[Round "08"]
[TimeControl "180+1"]
[Date "2022.05.17"]
[WhiteClock "0:00:04"]
[BlackClock "0:00:06"]

1. d4 {[%clk 0:03:00]}  Nf6 {[%clk 0:02:55]} 2. c4 {[%clk 0:03:00]}  e6 {[%clk 0:02:52]} 3. Nf3 {[%clk 0:03:00]}  c5 {[%clk 0:02:51]} 4. Nc3 {[%clk 0:02:56]}  a6 {[%clk 0:02:39]} 5. e3 {[%clk 0:02:51]}  d5 {[%clk 0:02:38]} 6. dxc5 {[%clk 0:02:40]}  Bxc5 {[%clk 0:02:37]} 7. a3 {[%clk 0:02:41]}  Nc6 {[%clk 0:02:28]} 8. b4 {[%clk 0:02:40]}  Ba7 {[%clk 0:02:20]} 9. Bb2 {[%clk 0:02:40]}  O-O {[%clk 0:02:18]} 10. Be2 {[%clk 0:02:30]}  dxc4 {[%clk 0:01:57]} 11. Bxc4 {[%clk 0:02:29]}  b5 {[%clk 0:01:54]} 12. Be2 {[%clk 0:02:19]}  Bb7 {[%clk 0:01:54]} 13. O-O {[%clk 0:02:19]}  Rc8 {[%clk 0:01:43]} 14. Rc1 {[%clk 0:02:17]}  Qe7 {[%clk 0:01:31]} 15. Qb3 {[%clk 0:02:15]}  Bb8 {[%clk 0:01:29]} 16. h3 {[%clk 0:02:11]}  h6 {[%clk 0:01:25]} 17. Rfd1 {[%clk 0:02:10]}  Ne5 {[%clk 0:01:19]} 18. Nxe5 {[%clk 0:02:05]}  Bxe5 {[%clk 0:01:20]} 19. Bf1 {[%clk 0:01:53]}  Bb8 {[%clk 0:01:16]} 20. Ne2 {[%clk 0:01:49]}  Ne4 {[%clk 0:01:02]} 21. f3 {[%clk 0:01:44]}  Rxc1 {[%clk 0:01:00]} 22. Bxc1 {[%clk 0:01:42]}  Nd6 {[%clk 0:00:54]} 23. e4 {[%clk 0:01:40]}  Nc4 {[%clk 0:00:50]} 24. Nc3 {[%clk 0:01:38]}  Qc7 {[%clk 0:00:39]} 25. Bxc4 {[%clk 0:01:08]}  bxc4 {[%clk 0:00:40]} 26. Qc2 {[%clk 0:01:07]}  Qh2+ {[%clk 0:00:40]} 27. Kf1 {[%clk 0:01:06]}  Ba7 {[%clk 0:00:40]} 28. Rd7 {[%clk 0:00:37]}  Qg1+ {[%clk 0:00:38]} 29. Ke2 {[%clk 0:00:38]}  Qxg2+ {[%clk 0:00:38]} 30. Kd1 {[%clk 0:00:38]}  Qxf3+ {[%clk 0:00:35]} 31. Ke1 {[%clk 0:00:35]}  Bb8 {[%clk 0:00:26]} 32. Ne2 {[%clk 0:00:15]}  Bxe4 {[%clk 0:00:24]} 33. Qxc4 {[%clk 0:00:16]}  Bg3+ {[%clk 0:00:17]} 34. Kd1 {[%clk 0:00:03]}  Bd5 {[%clk 0:00:15]} 35. Qxa6 {[%clk 0:00:02]}  Qb3+ {[%clk 0:00:12]} 36. Kd2 {[%clk 0:00:02]}  Bc4 {[%clk 0:00:12]} 37. Qc6 {[%clk 0:00:01]}  Qa2+ {[%clk 0:00:12]} 38. Kc3 {[%clk 0:00:01]}  Be5+ {[%clk 0:00:09]} 39. Nd4 {[%clk 0:00:01]}  Qb3+ {[%clk 0:00:10]} 40. Kd2 {[%clk 0:00:01]}  Qd3+ {[%clk 0:00:10]} 41. Ke1 {[%clk 0:00:02]}  Bxd4 {[%clk 0:00:10]} 42. Qg2 {[%clk 0:00:03]}  Bc3+ {[%clk 0:00:09]} 43. Bd2 {[%clk 0:00:03]}  Bxd2+ {[%clk 0:00:06]} 44. Qxd2 {[%clk 0:00:04]}  Qf1# {[%clk 0:00:06]} 0-1


[Site "https://www.chess.com"]